[Event "Early-Titled-Tuesday-Blitz-January-16-2024"]
[Site "Chess.com"]
[Date "2024.01.16"]
[Round "8"]
[White "marina1994"]
[Black "the_blue_pill"]
[Result "1-0"]
[WhiteElo "2527"]
[BlackElo "2342"]
[TimeControl "180+1"]
[EndTime "9:31:50 PST"]
[Termination "marina1994 won by resignation"]

1. e4 {[%clk 0:03:00.9]} 1... c5 {[%clk 0:02:57.4]} 2. Nf3 {[%clk 0:02:59.7]}
2... e6 {[%clk 0:02:52.5]} 3. d4 {[%clk 0:02:59.4]} 3... cxd4 {[%clk 0:02:52.3]}
4. Nxd4 {[%clk 0:02:59.6]} 4... Nf6 {[%clk 0:02:51.4]} 5. Nc3 {[%clk 0:02:59.1]}
5... d6 {[%clk 0:02:51.9]} 6. Be2 {[%clk 0:02:56.5]} 6... Be7 {[%clk 0:02:51]}
7. O-O {[%clk 0:02:56]} 7... O-O {[%clk 0:02:51.7]} 8. Be3 {[%clk 0:02:53.7]}
8... Nc6 {[%clk 0:02:45.7]} 9. Kh1 {[%clk 0:02:50.9]} 9... a6 {[%clk 0:02:41.7]}
10. f4 {[%clk 0:02:49.4]} 10... Qc7 {[%clk 0:02:39.4]} 11. Qe1 {[%clk
0:02:45.7]} 11... Nxd4 {[%clk 0:02:31.8]} 12. Bxd4 {[%clk 0:02:45.2]} 12... b5
{[%clk 0:02:32.5]} 13. a3 {[%clk 0:02:43]} 13... Bb7 {[%clk 0:02:28.9]} 14. Qg3
{[%clk 0:02:42.8]} 14... g6 {[%clk 0:02:24.1]} 15. Bf3 {[%clk 0:02:17.9]} 15...
Rfd8 {[%clk 0:01:52.4]} 16. Qf2 {[%clk 0:02:05.9]} 16... Nd7 {[%clk 0:01:47.7]}
17. Rad1 {[%clk 0:01:54.4]} 17... Rac8 {[%clk 0:01:37.8]} 18. Rd2 {[%clk
0:01:50.9]} 18... Rf8 {[%clk 0:01:11.8]} 19. f5 {[%clk 0:01:40.7]} 19... Ne5
{[%clk 0:00:56.2]} 20. Be2 {[%clk 0:01:24.9]} 20... Bf6 {[%clk 0:00:48.5]} 21.
Bb6 {[%clk 0:01:17.3]} 21... Qe7 {[%clk 0:00:44.5]} 22. Rfd1 {[%clk 0:01:17.3]}
22... Rc6 {[%clk 0:00:31.3]} 23. Be3 {[%clk 0:01:16.3]} 23... Bh4 {[%clk
0:00:30.9]} 24. Qf1 {[%clk 0:01:10.6]} 24... Bf6 {[%clk 0:00:27.4]} 25. Bh6
{[%clk 0:01:08.2]} 25... Rfc8 {[%clk 0:00:24.3]} 26. Qf2 {[%clk 0:01:03.6]}
26... Bh4 {[%clk 0:00:23.5]} 27. Qf1 {[%clk 0:01:00.7]} 27... Bg5 {[%clk
0:00:19.3]} 28. Bxg5 {[%clk 0:00:58.5]} 28... Qxg5 {[%clk 0:00:20.2]} 29. Qf2
{[%clk 0:00:55.9]} 29... Rxc3 {[%clk 0:00:18.7]} 30. bxc3 {[%clk 0:00:55.3]}
30... Bxe4 {[%clk 0:00:18.2]} 31. Rxd6 {[%clk 0:00:50.8]} 31... gxf5 {[%clk
0:00:12.3]} 32. Bf1 {[%clk 0:00:47.9]} 32... Rxc3 {[%clk 0:00:11.9]} 33. Qd4
{[%clk 0:00:46.5]} 33... Rxc2 {[%clk 0:00:09.4]} 34. Rd8+ {[%clk 0:00:44.1]}
34... Kg7 {[%clk 0:00:09.8]} 35. Qxe5+ {[%clk 0:00:44.3]} 35... Kg6 {[%clk
0:00:10.2]} 36. Rg8+ {[%clk 0:00:43.4]} 1-0

[Event "Early-Titled-Tuesday-Blitz-January-16-2024"]
[Site "Chess.com"]
[Date "2024.01.16"]
[Round "8"]
[White "Nikolakis2014"]
[Black "Nf3c5"]
[Result "1-0"]
[WhiteElo "2739"]
[BlackElo "2558"]
[TimeControl "180+1"]
[EndTime "9:31:54 PST"]
[Termination "Nikolakis2014 won on time"]

1. Nf3 {[%clk 0:03:00.9]} 1... d5 {[%clk 0:02:57]} 2. d4 {[%clk 0:02:59.1]} 2...
Nf6 {[%clk 0:02:55.3]} 3. c4 {[%clk 0:02:59]} 3... e6 {[%clk 0:02:51.6]} 4. g3
{[%clk 0:02:59]} 4... c5 {[%clk 0:02:51]} 5. Bg2 {[%clk 0:02:58.6]} 5... Nc6
{[%clk 0:02:46.7]} 6. O-O {[%clk 0:02:57.3]} 6... cxd4 {[%clk 0:02:34.7]} 7.
Nxd4 {[%clk 0:02:55.9]} 7... Bc5 {[%clk 0:02:35.1]} 8. Nb3 {[%clk 0:02:52.8]}
8... Bb6 {[%clk 0:02:23.4]} 9. Bg5 {[%clk 0:02:50.5]} 9... dxc4 {[%clk
0:02:19.9]} 10. Qxd8+ {[%clk 0:02:47.2]} 10... Bxd8 {[%clk 0:02:15]} 11. N3d2
{[%clk 0:02:37.6]} 11... Na5 {[%clk 0:01:54.3]} 12. Na3 {[%clk 0:02:32.4]} 12...
c3 {[%clk 0:01:40.2]} 13. bxc3 {[%clk 0:02:31.7]} 13... Bd7 {[%clk 0:01:40.1]}
14. Nac4 {[%clk 0:02:20.2]} 14... Bc6 {[%clk 0:01:28.1]} 15. Bxc6+ {[%clk
0:02:10.4]} 15... bxc6 {[%clk 0:01:22.3]} 16. Rab1 {[%clk 0:01:59.7]} 16... Nxc4
{[%clk 0:01:01.8]} 17. Nxc4 {[%clk 0:01:58.2]} 17... Ne4 {[%clk 0:01:02.4]} 18.
Bf4 {[%clk 0:01:34.5]} 18... Be7 {[%clk 0:00:45.1]} 19. Rb7 {[%clk 0:01:23.7]}
19... f6 {[%clk 0:00:38.2]} 20. f3 {[%clk 0:00:38.6]} 20... Nxc3 {[%clk
0:00:32.1]} 21. Bd6 {[%clk 0:00:38.5]} 21... Bd8 {[%clk 0:00:18.3]} 22. Rxg7
{[%clk 0:00:33.7]} 22... Nxe2+ {[%clk 0:00:13.1]} 23. Kf2 {[%clk 0:00:33.7]}
23... Nd4 {[%clk 0:00:14]} 24. Re1 {[%clk 0:00:31.9]} 24... e5 {[%clk
0:00:12.1]} 25. Nxe5 {[%clk 0:00:29]} 25... fxe5 {[%clk 0:00:09.2]} 26. Rxe5+
{[%clk 0:00:28.4]} 1-0

[Event "Early-Titled-Tuesday-Blitz-January-16-2024"]
[Site "Chess.com"]
[Date "2024.01.16"]
[Round "8"]
[White "DraningWaterHi"]
[Black "Jojo_898"]
[Result "1-0"]
[WhiteElo "2184"]
[BlackElo "2450"]
[TimeControl "180+1"]
[EndTime "9:31:54 PST"]
[Termination "DraningWaterHi won by resignation"]

1. d4 {[%clk 0:03:00.9]} 1... Nf6 {[%clk 0:02:57]} 2. c4 {[%clk 0:02:59.1]} 2...
e6 {[%clk 0:02:55.7]} 3. g3 {[%clk 0:02:57.6]} 3... d5 {[%clk 0:02:53.2]} 4. Bg2
{[%clk 0:02:56.8]} 4... Ne4 {[%clk 0:02:51.5]} 5. f3 {[%clk 0:02:54.2]} 5... Nf6
{[%clk 0:02:46]} 6. e4 {[%clk 0:02:53.6]} 6... dxc4 {[%clk 0:02:42.4]} 7. Qa4+
{[%clk 0:02:50.7]} 7... Nbd7 {[%clk 0:02:39.8]} 8. Ne2 {[%clk 0:02:41.2]} 8...
a6 {[%clk 0:02:35]} 9. Qxc4 {[%clk 0:02:40.7]} 9... Nb6 {[%clk 0:02:35.5]} 10.
Qc2 {[%clk 0:02:40.2]} 10... Bb4+ {[%clk 0:02:29.7]} 11. Bd2 {[%clk 0:02:37.7]}
11... Bxd2+ {[%clk 0:02:27.2]} 12. Qxd2 {[%clk 0:02:37]} 12... O-O {[%clk
0:02:26.9]} 13. b3 {[%clk 0:02:37.1]} 13... Qe7 {[%clk 0:02:09]} 14. Nbc3 {[%clk
0:02:35.4]} 14... e5 {[%clk 0:02:08.3]} 15. d5 {[%clk 0:02:35.3]} 15... c6
{[%clk 0:01:59.8]} 16. Qe3 {[%clk 0:02:34.6]} 16... Qc7 {[%clk 0:01:54.6]} 17.
d6 {[%clk 0:02:29.8]} 17... Qd8 {[%clk 0:01:50.9]} 18. O-O {[%clk 0:02:29]}
18... Be6 {[%clk 0:01:45.9]} 19. f4 {[%clk 0:02:28.7]} 19... Nc8 {[%clk
0:01:20.9]} 20. fxe5 {[%clk 0:02:26.9]} 20... Ng4 {[%clk 0:01:20.2]} 21. Qd4
{[%clk 0:02:25.6]} 21... b6 {[%clk 0:00:56.4]} 22. Nd1 {[%clk 0:02:10.9]} 22...
c5 {[%clk 0:00:54.3]} 23. Qc3 {[%clk 0:02:10.5]} 23... Qg5 {[%clk 0:00:51.8]}
24. h3 {[%clk 0:02:08.8]} 24... Nxe5 {[%clk 0:00:35.9]} 25. h4 {[%clk
0:02:04.6]} 25... Qg4 {[%clk 0:00:34.3]} 26. Nf2 {[%clk 0:01:54.7]} 26... Qxe2
{[%clk 0:00:30.7]} 27. Qxe5 {[%clk 0:01:54.1]} 27... Ra7 {[%clk 0:00:20.4]} 28.
Rfe1 {[%clk 0:01:43.3]} 28... Qd2 {[%clk 0:00:19.6]} 29. Red1 {[%clk 0:01:37.2]}
29... Qh6 {[%clk 0:00:20.2]} 30. Rac1 {[%clk 0:01:34.2]} 30... Rd7 {[%clk
0:00:20.7]} 31. Rc3 {[%clk 0:01:25.1]} 31... Rfd8 {[%clk 0:00:20.8]} 32. Rcd3
{[%clk 0:01:24.5]} 32... Qg6 {[%clk 0:00:19.4]} 33. Kh2 {[%clk 0:01:21.3]} 33...
c4 {[%clk 0:00:19.7]} 34. bxc4 {[%clk 0:01:19.6]} 34... Bxc4 {[%clk 0:00:20.4]}
35. Rd4 {[%clk 0:01:20]} 35... b5 {[%clk 0:00:20.6]} 36. Bh3 {[%clk 0:01:18.7]}
36... Be6 {[%clk 0:00:20]} 37. Bxe6 {[%clk 0:01:17.4]} 37... Qxe6 {[%clk
0:00:20.2]} 38. Qxe6 {[%clk 0:01:17.4]} 38... fxe6 {[%clk 0:00:21]} 39. e5
{[%clk 0:01:18.1]} 39... Nb6 {[%clk 0:00:21.6]} 40. Ne4 {[%clk 0:01:16.2]} 40...
Nc4 {[%clk 0:00:22]} 41. Rxc4 {[%clk 0:01:14.4]} 41... bxc4 {[%clk 0:00:21]} 42.
Nc5 {[%clk 0:01:15]} 42... Rf7 {[%clk 0:00:21.5]} 43. Nxe6 {[%clk 0:01:14.3]}
43... Rb8 {[%clk 0:00:19.4]} 44. Nc5 {[%clk 0:01:12.7]} 44... Rf2+ {[%clk
0:00:18.5]} 45. Kh3 {[%clk 0:01:10.8]} 45... Re2 {[%clk 0:00:15.6]} 46. e6
{[%clk 0:01:11.3]} 46... Kf8 {[%clk 0:00:14.1]} 47. Nd7+ {[%clk 0:01:09.7]} 1-0

[Event "Early-Titled-Tuesday-Blitz-January-16-2024"]
[Site "Chess.com"]
[Date "2024.01.16"]
[Round "8"]
[White "KNVB"]
[Black "MikaelyanArman"]
[Result "0-1"]
[WhiteElo "2693"]
[BlackElo "2849"]
[TimeControl "180+1"]
[EndTime "9:31:58 PST"]
[Termination "MikaelyanArman won by resignation"]

1. d4 {[%clk 0:03:00.9]} 1... g6 {[%clk 0:02:58.6]} 2. Bf4 {[%clk 0:03:00.8]}
2... Bg7 {[%clk 0:02:59]} 3. e3 {[%clk 0:03:01.4]} 3... d6 {[%clk 0:02:59.5]} 4.
h3 {[%clk 0:03:02]} 4... c5 {[%clk 0:02:56.4]} 5. c3 {[%clk 0:03:02.1]} 5... Qb6
{[%clk 0:02:55]} 6. Qb3 {[%clk 0:03:02.1]} 6... Be6 {[%clk 0:02:52.3]} 7. Qxb6
{[%clk 0:03:02.5]} 7... axb6 {[%clk 0:02:53.2]} 8. a3 {[%clk 0:03:03.4]} 8...
Nc6 {[%clk 0:02:47.3]} 9. Nd2 {[%clk 0:03:03.8]} 9... Nf6 {[%clk 0:02:41.3]} 10.
Ngf3 {[%clk 0:03:04]} 10... Nd5 {[%clk 0:02:40.5]} 11. Bg3 {[%clk 0:03:03.6]}
11... Nc7 {[%clk 0:02:40.8]} 12. Bd3 {[%clk 0:02:52.2]} 12... Kd7 {[%clk
0:02:34.5]} 13. Ng5 {[%clk 0:02:48.5]} 13... cxd4 {[%clk 0:02:21.9]} 14. Nxe6
{[%clk 0:02:02]} 14... dxe3 {[%clk 0:02:07.2]} 15. Nxg7 {[%clk 0:01:54.6]} 15...
exd2+ {[%clk 0:02:07.2]} 16. Kxd2 {[%clk 0:01:55.2]} 16... Rag8 {[%clk
0:02:07.1]} 17. Nf5 {[%clk 0:01:38.7]} 17... gxf5 {[%clk 0:02:06.9]} 18. Bxf5+
{[%clk 0:01:39.6]} 18... e6 {[%clk 0:02:07.6]} 19. Be4 {[%clk 0:01:28.5]} 19...
f5 {[%clk 0:02:05.8]} 20. Bf3 {[%clk 0:01:26.2]} 20... e5 {[%clk 0:02:03.7]} 21.
Bh4 {[%clk 0:01:01.2]} 21... e4 {[%clk 0:01:55.7]} 22. Be2 {[%clk 0:00:29]}
22... Rxg2 {[%clk 0:01:13.9]} 23. Bg3 {[%clk 0:00:29]} 23... Rg8 {[%clk
0:01:14.5]} 24. Raf1 {[%clk 0:00:05.3]} 24... Ne6 {[%clk 0:01:14.1]} 25. Ke1
{[%clk 0:00:02]} 25... f4 {[%clk 0:01:11.4]} 26. Bh4 {[%clk 0:00:02.5]} 26...
Ne5 {[%clk 0:01:12.1]} 27. Bf6 {[%clk 0:00:01]} 27... Nc5 {[%clk 0:01:06.6]} 28.
Bb5+ {[%clk 0:00:01.4]} 28... Ke6 {[%clk 0:01:06.4]} 29. Bxe5 {[%clk 0:00:01.5]}
29... Kxe5 {[%clk 0:01:03.7]} 30. Ke2 {[%clk 0:00:01.9]} 30... R8g3 {[%clk
0:00:55.8]} 31. h4 {[%clk 0:00:02.1]} 31... Nd3 {[%clk 0:00:43.1]} 32. h5 {[%clk
0:00:01.6]} 32... Re3+ {[%clk 0:00:38.7]} 33. Kd1 {[%clk 0:00:01.9]} 33... Nxf2+
{[%clk 0:00:38.9]} 34. Rxf2 {[%clk 0:00:02.5]} 34... Rxf2 {[%clk 0:00:39.8]} 35.
h6 {[%clk 0:00:02.5]} 35... Rxb2 {[%clk 0:00:38.2]} 0-1

[Event "Early-Titled-Tuesday-Blitz-January-16-2024"]
[Site "Chess.com"]
[Date "2024.01.16"]
[Round "8"]
[White "ErikRonka"]
[Black "elchacal664"]
[Result "0-1"]
[WhiteElo "2504"]
[BlackElo "2373"]
[TimeControl "180+1"]
[EndTime "9:31:59 PST"]
[Termination "elchacal664 won by checkmate"]

1. Nf3 {[%clk 0:03:00.9]} 1... Nf6 {[%clk 0:02:59.3]} 2. c4 {[%clk 0:02:59.6]}
2... g6 {[%clk 0:02:59.6]} 3. Nc3 {[%clk 0:02:57.6]} 3... Bg7 {[%clk 0:03:00.1]}
4. e4 {[%clk 0:02:58.2]} 4... d6 {[%clk 0:02:59.3]} 5. d4 {[%clk 0:02:58.7]}
5... O-O {[%clk 0:02:59]} 6. Be2 {[%clk 0:02:59.3]} 6... c5 {[%clk 0:02:59]} 7.
d5 {[%clk 0:02:58.4]} 7... Bg4 {[%clk 0:02:56.3]} 8. O-O {[%clk 0:02:58.5]} 8...
Bxf3 {[%clk 0:02:50.1]} 9. Bxf3 {[%clk 0:02:59.4]} 9... Nfd7 {[%clk 0:02:46.4]}
10. Qc2 {[%clk 0:02:49.6]} 10... Na6 {[%clk 0:02:44.7]} 11. Bg5 {[%clk
0:02:46.7]} 11... Re8 {[%clk 0:02:39.1]} 12. Be2 {[%clk 0:02:42.6]} 12... Nc7
{[%clk 0:02:26]} 13. a4 {[%clk 0:02:40.7]} 13... Na6 {[%clk 0:02:24.9]} 14. Qd2
{[%clk 0:02:39.5]} 14... Nb4 {[%clk 0:02:23.7]} 15. f4 {[%clk 0:02:36.1]} 15...
a6 {[%clk 0:02:14.7]} 16. Kh1 {[%clk 0:02:17.7]} 16... Qc7 {[%clk 0:02:11.4]}
17. Rf3 {[%clk 0:02:16.2]} 17... e6 {[%clk 0:01:50.3]} 18. dxe6 {[%clk
0:02:11.1]} 18... Rxe6 {[%clk 0:01:49.5]} 19. Raf1 {[%clk 0:02:05.1]} 19... Rae8
{[%clk 0:01:43]} 20. f5 {[%clk 0:01:51.3]} 20... gxf5 {[%clk 0:01:23.5]} 21.
exf5 {[%clk 0:01:13.5]} 21... Re5 {[%clk 0:01:14.2]} 22. f6 {[%clk 0:01:09.8]}
22... Bf8 {[%clk 0:01:00.2]} 23. Bh6 {[%clk 0:01:06.6]} 23... Kh8 {[%clk
0:00:42.4]} 24. Bxf8 {[%clk 0:01:02]} 24... Rxf8 {[%clk 0:00:36]} 25. Qh6 {[%clk
0:00:59.3]} 25... Rg8 {[%clk 0:00:35.3]} 26. Rh3 {[%clk 0:00:43.1]} 26... Nf8
{[%clk 0:00:34.7]} 27. Rf4 {[%clk 0:00:23.9]} 27... Qc6 {[%clk 0:00:25]} 28. Rg4
{[%clk 0:00:17.5]} 28... Rxg4 {[%clk 0:00:14]} 29. Bxg4 {[%clk 0:00:18.4]} 29...
Re1# {[%clk 0:00:13.1]} 0-1

[Event "Early-Titled-Tuesday-Blitz-January-16-2024"]
[Site "Chess.com"]
[Date "2024.01.16"]
[Round "8"]
[White "Shield12"]
[Black "Legendinunknown"]
[Result "1-0"]
[WhiteElo "3010"]
[BlackElo "2818"]
[TimeControl "180+1"]
[EndTime "9:32:02 PST"]
[Termination "Shield12 won on time"]

1. e4 {[%clk 0:03:00.9]} 1... c5 {[%clk 0:02:56.1]} 2. Nf3 {[%clk 0:03:00.4]}
2... d6 {[%clk 0:02:55.5]} 3. d4 {[%clk 0:03:00.5]} 3... cxd4 {[%clk 0:02:52.2]}
4. Nxd4 {[%clk 0:03:01.4]} 4... Nf6 {[%clk 0:02:51.1]} 5. Nc3 {[%clk 0:03:02]}
5... Nc6 {[%clk 0:02:51.4]} 6. Bg5 {[%clk 0:03:01.6]} 6... Bd7 {[%clk
0:02:51.4]} 7. Nxc6 {[%clk 0:03:00.6]} 7... bxc6 {[%clk 0:02:49.1]} 8. Bc4
{[%clk 0:02:59.8]} 8... e6 {[%clk 0:02:49.1]} 9. Qe2 {[%clk 0:02:58.6]} 9... h6
{[%clk 0:02:38.5]} 10. Bh4 {[%clk 0:02:57.6]} 10... Be7 {[%clk 0:01:56.3]} 11.
O-O-O {[%clk 0:02:55.5]} 11... O-O {[%clk 0:01:56]} 12. e5 {[%clk 0:02:47.4]}
12... dxe5 {[%clk 0:01:52.5]} 13. Qxe5 {[%clk 0:02:43.8]} 13... Nd5 {[%clk
0:01:38.2]} 14. Bxe7 {[%clk 0:02:39.2]} 14... Qxe7 {[%clk 0:01:39.1]} 15. Bxd5
{[%clk 0:02:35.8]} 15... cxd5 {[%clk 0:01:40]} 16. Nxd5 {[%clk 0:02:35.8]} 16...
Qh4 {[%clk 0:01:38]} 17. g3 {[%clk 0:02:33.4]} 17... Qd8 {[%clk 0:01:26]} 18.
Nc3 {[%clk 0:02:22.7]} 18... Qc8 {[%clk 0:01:21.3]} 19. Rd4 {[%clk 0:02:20.7]}
19... Bc6 {[%clk 0:01:19]} 20. Rhd1 {[%clk 0:02:19.7]} 20... Rb8 {[%clk
0:01:09.5]} 21. Rc4 {[%clk 0:02:11.6]} 21... Rb6 {[%clk 0:01:04.2]} 22. b3
{[%clk 0:02:00]} 22... Qa6 {[%clk 0:00:39.1]} 23. a4 {[%clk 0:01:59.3]} 23...
Qb7 {[%clk 0:00:33]} 24. Rg4 {[%clk 0:01:56]} 24... g6 {[%clk 0:00:32.5]} 25.
Rd6 {[%clk 0:01:47.7]} 25... Bf3 {[%clk 0:00:30.3]} 26. Rgd4 {[%clk 0:01:45]}
26... Rxd6 {[%clk 0:00:28.4]} 27. Rxd6 {[%clk 0:01:44.4]} 27... Qb8 {[%clk
0:00:16.1]} 28. Qd4 {[%clk 0:01:41.7]} 28... h5 {[%clk 0:00:11]} 29. h4 {[%clk
0:01:38.2]} 29... Bb7 {[%clk 0:00:05.8]} 30. Rd7 {[%clk 0:01:33.5]} 30... Bc6
{[%clk 0:00:05.1]} 31. Rd6 {[%clk 0:01:26.6]} 31... Bb7 {[%clk 0:00:04.8]} 32.
Kb2 {[%clk 0:01:25.5]} 32... a6 {[%clk 0:00:04.2]} 33. Qb6 {[%clk 0:01:22.7]}
33... Qc8 {[%clk 0:00:04.3]} 34. Qd4 {[%clk 0:01:17.5]} 34... Re8 {[%clk
0:00:04.6]} 35. Rd7 {[%clk 0:01:11.6]} 35... Bc6 {[%clk 0:00:04.8]} 36. Ra7
{[%clk 0:01:11.4]} 36... Bb7 {[%clk 0:00:04.8]} 37. Qb4 {[%clk 0:01:04.7]} 37...
Bc6 {[%clk 0:00:01.3]} 38. Qb6 {[%clk 0:01:03.6]} 1-0

[Event "Early-Titled-Tuesday-Blitz-January-16-2024"]
[Site "Chess.com"]
[Date "2024.01.16"]
[Round "8"]
[White "kidagent"]
[Black "guillembaches"]
[Result "1-0"]
[WhiteElo "2299"]
[BlackElo "2512"]
[TimeControl "180+1"]
[EndTime "9:32:02 PST"]
[Termination "kidagent won by resignation"]

1. c4 {[%clk 0:02:57.7]} 1... e6 {[%clk 0:02:59.6]} 2. g3 {[%clk 0:02:57.6]}
2... d5 {[%clk 0:03:00.2]} 3. Bg2 {[%clk 0:02:57.9]} 3... a6 {[%clk 0:02:59.9]}
4. Nf3 {[%clk 0:02:42.1]} 4... Nf6 {[%clk 0:02:55.7]} 5. O-O {[%clk 0:02:40.1]}
5... dxc4 {[%clk 0:02:54.9]} 6. Na3 {[%clk 0:02:39.5]} 6... b5 {[%clk
0:02:51.8]} 7. b3 {[%clk 0:02:32.2]} 7... cxb3 {[%clk 0:02:48.4]} 8. Qxb3 {[%clk
0:02:27.8]} 8... Bb7 {[%clk 0:02:44.9]} 9. Bb2 {[%clk 0:02:20.8]} 9... Nbd7
{[%clk 0:02:36.6]} 10. Rac1 {[%clk 0:02:18.5]} 10... Bd6 {[%clk 0:02:35.9]} 11.
d3 {[%clk 0:02:03.1]} 11... Kf8 {[%clk 0:02:31.5]} 12. e4 {[%clk 0:02:02.8]}
12... e5 {[%clk 0:02:24.9]} 13. Rfe1 {[%clk 0:01:56.2]} 13... Qe7 {[%clk
0:02:22.8]} 14. Nc2 {[%clk 0:01:49.3]} 14... Nc5 {[%clk 0:02:18.8]} 15. Qc3
{[%clk 0:01:47.2]} 15... Na4 {[%clk 0:02:17]} 16. Qb3 {[%clk 0:01:46.5]} 16...
Nxb2 {[%clk 0:02:15.5]} 17. Qxb2 {[%clk 0:01:46.9]} 17... g6 {[%clk 0:02:11.4]}
18. Ne3 {[%clk 0:01:43.4]} 18... Kg7 {[%clk 0:02:08.2]} 19. Nxe5 {[%clk
0:01:26.5]} 19... Ba3 {[%clk 0:01:41.2]} 20. Qc3 {[%clk 0:01:22.1]} 20... Bxc1
{[%clk 0:01:39.2]} 21. Rxc1 {[%clk 0:01:22]} 21... Rac8 {[%clk 0:01:26.4]} 22.
f4 {[%clk 0:01:16.4]} 22... h5 {[%clk 0:01:22.4]} 23. Bh3 {[%clk 0:01:15.4]}
23... c5 {[%clk 0:01:05.7]} 24. Bxc8 {[%clk 0:01:10.8]} 24... Rxc8 {[%clk
0:01:06.6]} 25. Qa5 {[%clk 0:00:55.6]} 25... Rd8 {[%clk 0:00:59.4]} 26. a4
{[%clk 0:00:47.4]} 26... Qe8 {[%clk 0:00:53.7]} 27. axb5 {[%clk 0:00:43.5]}
27... axb5 {[%clk 0:00:53.6]} 28. Rxc5 {[%clk 0:00:41.9]} 28... Rxd3 {[%clk
0:00:40.1]} 29. Nxd3 {[%clk 0:00:34.9]} 29... Qxe4 {[%clk 0:00:40]} 30. Re5
{[%clk 0:00:32.1]} 30... Qh1+ {[%clk 0:00:12.1]} 31. Kf2 {[%clk 0:00:31.6]}
31... Qxh2+ {[%clk 0:00:12.4]} 32. Ke1 {[%clk 0:00:31.3]} 32... Qxg3+ {[%clk
0:00:12.2]} 33. Kd2 {[%clk 0:00:31.1]} 33... Qxf4 {[%clk 0:00:12.3]} 34. Nxf4
{[%clk 0:00:30.5]} 1-0

[Event "Early-Titled-Tuesday-Blitz-January-16-2024"]
[Site "Chess.com"]
[Date "2024.01.16"]
[Round "8"]
[White "Aguiar94"]
[Black "laiciffOneslraCsungaM"]
[Result "1-0"]
[WhiteElo "2531"]
[BlackElo "2370"]
[TimeControl "180+1"]
[EndTime "9:32:06 PST"]
[Termination "Aguiar94 won by resignation"]

1. e4 {[%clk 0:02:05.8]} 1... e6 {[%clk 0:02:59.7]} 2. d4 {[%clk 0:02:05.2]}
2... d5 {[%clk 0:02:57.3]} 3. Nd2 {[%clk 0:02:05.7]} 3... c5 {[%clk 0:02:57.6]}
4. Ngf3 {[%clk 0:02:05.4]} 4... cxd4 {[%clk 0:02:52.2]} 5. Nxd4 {[%clk
0:02:06.3]} 5... Nc6 {[%clk 0:02:51.4]} 6. Bb5 {[%clk 0:02:04.5]} 6... Bd7
{[%clk 0:02:49.9]} 7. Nxc6 {[%clk 0:02:03.5]} 7... bxc6 {[%clk 0:02:50]} 8. Bd3
{[%clk 0:02:03]} 8... Qc7 {[%clk 0:02:48.5]} 9. Qe2 {[%clk 0:02:02.8]} 9... Ne7
{[%clk 0:02:45.5]} 10. Nf3 {[%clk 0:02:00.8]} 10... Ng6 {[%clk 0:02:41.5]} 11.
e5 {[%clk 0:01:59.8]} 11... f6 {[%clk 0:02:38.1]} 12. exf6 {[%clk 0:01:56.3]}
12... gxf6 {[%clk 0:02:29.6]} 13. O-O {[%clk 0:01:53.8]} 13... Kf7 {[%clk
0:02:28.2]} 14. c4 {[%clk 0:01:46.3]} 14... e5 {[%clk 0:02:09]} 15. cxd5 {[%clk
0:01:44.1]} 15... cxd5 {[%clk 0:02:09.9]} 16. Bc2 {[%clk 0:01:31]} 16... Rc8
{[%clk 0:01:55.3]} 17. Bb3 {[%clk 0:01:28.6]} 17... Be6 {[%clk 0:01:49.9]} 18.
Be3 {[%clk 0:01:19.5]} 18... Bd6 {[%clk 0:01:42.4]} 19. Rfd1 {[%clk 0:01:14.7]}
19... e4 {[%clk 0:01:39.5]} 20. Nd4 {[%clk 0:01:04.2]} 20... Bxh2+ {[%clk
0:01:36]} 21. Kh1 {[%clk 0:01:04.8]} 21... Rhd8 {[%clk 0:01:29.8]} 22. Qh5
{[%clk 0:00:59.4]} 22... f5 {[%clk 0:00:50.7]} 23. Qxh2 {[%clk 0:00:31]} 23...
Qxh2+ {[%clk 0:00:42.1]} 24. Kxh2 {[%clk 0:00:31.9]} 24... f4 {[%clk 0:00:42.7]}
25. Bd2 {[%clk 0:00:30.6]} 25... Bg4 {[%clk 0:00:42.7]} 26. Re1 {[%clk
0:00:29.9]} 26... Kg7 {[%clk 0:00:41.6]} 27. f3 {[%clk 0:00:27.3]} 27... Bh5
{[%clk 0:00:18.7]} 28. Ne6+ {[%clk 0:00:24.9]} 28... Kf6 {[%clk 0:00:19.3]} 29.
Nxd8 {[%clk 0:00:25.2]} 29... Rxd8 {[%clk 0:00:20.2]} 30. Ba5 {[%clk 0:00:18.6]}
30... e3 {[%clk 0:00:19.9]} 31. Bxd8+ {[%clk 0:00:17.9]} 1-0